[Event "Late-Titled-Tuesday-Blitz-March-26-2024"]
[Site "Chess.com"]
[Date "2024.03.26"]
[Round "1"]
[White "mightysmasher"]
[Black "teresin05"]
[Result "1-0"]
[WhiteElo "2608"]
[BlackElo "2253"]
[TimeControl "180+1"]
[EndTime "14:08:30 PDT"]
[Termination "mightysmasher won by checkmate"]

1. e4 {[%clk 0:03:00.9]} 1... c5 {[%clk 0:02:58.4]} 2. c3 {[%clk 0:03:00.8]}
2... Nf6 {[%clk 0:02:55.5]} 3. e5 {[%clk 0:03:00.8]} 3... Nd5 {[%clk 0:02:55.9]}
4. d4 {[%clk 0:03:01.3]} 4... cxd4 {[%clk 0:02:56.8]} 5. cxd4 {[%clk 0:03:02.1]}
5... d6 {[%clk 0:02:51]} 6. Nf3 {[%clk 0:03:01.7]} 6... e6 {[%clk 0:02:50.5]} 7.
Bc4 {[%clk 0:02:58.5]} 7... dxe5 {[%clk 0:02:46]} 8. dxe5 {[%clk 0:02:57.3]}
8... Nb6 {[%clk 0:02:44.6]} 9. Qxd8+ {[%clk 0:02:55.8]} 9... Kxd8 {[%clk
0:02:45.5]} 10. Bb3 {[%clk 0:02:56.2]} 10... Nc6 {[%clk 0:02:45.1]} 11. O-O
{[%clk 0:02:55.7]} 11... Be7 {[%clk 0:02:44]} 12. Nc3 {[%clk 0:02:54.1]} 12...
a6 {[%clk 0:02:44.4]} 13. Rd1+ {[%clk 0:02:53.4]} 13... Kc7 {[%clk 0:02:44]} 14.
Be3 {[%clk 0:02:52.9]} 14... Bd7 {[%clk 0:02:42.9]} 15. Rac1 {[%clk 0:02:51.9]}
15... Rad8 {[%clk 0:02:40.1]} 16. Ne4 {[%clk 0:02:51.2]} 16... Bc8 {[%clk
0:02:34.9]} 17. Nd6 {[%clk 0:02:41.9]} 17... Rhf8 {[%clk 0:02:28]} 18. a4 {[%clk
0:02:14.5]} 18... Nd7 {[%clk 0:02:22.2]} 19. a5 {[%clk 0:01:52]} 19... Kb8
{[%clk 0:02:13.9]} 20. Nxc8 {[%clk 0:01:45.5]} 20... Kxc8 {[%clk 0:02:14.8]} 21.
Ba4 {[%clk 0:01:43.7]} 21... Nb8 {[%clk 0:02:11.3]} 22. Rxd8+ {[%clk 0:01:39.3]}
22... Rxd8 {[%clk 0:02:10.4]} 23. Nd4 {[%clk 0:01:38.1]} 23... Kd7 {[%clk
0:01:59.1]} 24. Nxc6 {[%clk 0:01:34]} 24... Nxc6 {[%clk 0:02:00]} 25. Bb6 {[%clk
0:01:34.1]} 25... Rc8 {[%clk 0:01:56.5]} 26. f4 {[%clk 0:01:32.9]} 26... Bd8
{[%clk 0:01:54.5]} 27. Rd1+ {[%clk 0:01:22.3]} 27... Ke8 {[%clk 0:01:50.4]} 28.
Rc1 {[%clk 0:01:18.9]} 28... Bxb6+ {[%clk 0:01:49.8]} 29. axb6 {[%clk
0:01:18.7]} 29... Kd7 {[%clk 0:01:45.9]} 30. Kf2 {[%clk 0:01:18]} 30... f6
{[%clk 0:01:44.5]} 31. Ke3 {[%clk 0:01:07.1]} 31... Ke7 {[%clk 0:01:31.7]} 32.
g4 {[%clk 0:01:01.4]} 32... Kf7 {[%clk 0:01:15.4]} 33. Ke4 {[%clk 0:00:54.3]}
33... Ke7 {[%clk 0:01:15.2]} 34. h4 {[%clk 0:00:52.9]} 34... f5+ {[%clk
0:01:10.6]} 35. gxf5 {[%clk 0:00:46.6]} 35... exf5+ {[%clk 0:01:11.5]} 36. Ke3
{[%clk 0:00:46.4]} 36... Ke6 {[%clk 0:01:08.6]} 37. Bb3+ {[%clk 0:00:44]} 37...
Ke7 {[%clk 0:01:07.5]} 38. Bd5 {[%clk 0:00:42.7]} 38... Kd7 {[%clk 0:00:59.5]}
39. h5 {[%clk 0:00:40.7]} 39... Ne7 {[%clk 0:00:43.6]} 40. Rxc8 {[%clk
0:00:19.6]} 40... Kxc8 {[%clk 0:00:44.5]} 41. Be6+ {[%clk 0:00:18.9]} 41... Kd8
{[%clk 0:00:44.1]} 42. Kd4 {[%clk 0:00:19.2]} 42... Nc6+ {[%clk 0:00:40.2]} 43.
Kc5 {[%clk 0:00:19.1]} 43... Ke7 {[%clk 0:00:35.4]} 44. Bxf5 {[%clk 0:00:18.3]}
44... h6 {[%clk 0:00:34.6]} 45. Be4 {[%clk 0:00:17.3]} 45... Nd8 {[%clk
0:00:35.1]} 46. f5 {[%clk 0:00:17.2]} 46... Kd7 {[%clk 0:00:25.2]} 47. Bd5
{[%clk 0:00:17]} 47... Ke7 {[%clk 0:00:25.3]} 48. b4 {[%clk 0:00:16.8]} 48...
Kd7 {[%clk 0:00:23.8]} 49. f6 {[%clk 0:00:14.5]} 49... gxf6 {[%clk 0:00:24.7]}
50. exf6 {[%clk 0:00:15.4]} 50... Ke8 {[%clk 0:00:22.7]} 51. Kd6 {[%clk
0:00:15.3]} 51... Kf8 {[%clk 0:00:22.9]} 52. Kd7 {[%clk 0:00:15]} 52... Nf7
{[%clk 0:00:22.5]} 53. Bxb7 {[%clk 0:00:15]} 53... Ne5+ {[%clk 0:00:20.6]} 54.
Ke6 {[%clk 0:00:15]} 54... Nc4 {[%clk 0:00:20.4]} 55. Bxa6 {[%clk 0:00:13.6]}
55... Nxb6 {[%clk 0:00:21.1]} 56. Bd3 {[%clk 0:00:12.8]} 56... Na8 {[%clk
0:00:18.9]} 57. b5 {[%clk 0:00:12.4]} 57... Nb6 {[%clk 0:00:17.1]} 58. Kd6
{[%clk 0:00:12.6]} 58... Kf7 {[%clk 0:00:16.4]} 59. Kc6 {[%clk 0:00:11.1]} 59...
Na4 {[%clk 0:00:17.1]} 60. Bc2 {[%clk 0:00:09.3]} 60... Nc3 {[%clk 0:00:17.5]}
61. b6 {[%clk 0:00:09.3]} 61... Ne2 {[%clk 0:00:14.4]} 62. Bb3+ {[%clk
0:00:08.2]} 62... Kxf6 {[%clk 0:00:14.1]} 63. Kc5 {[%clk 0:00:07.9]} 63... Nd4
{[%clk 0:00:15]} 64. Kxd4 {[%clk 0:00:08]} 64... Kg5 {[%clk 0:00:14.7]} 65. b7
{[%clk 0:00:08]} 65... Kxh5 {[%clk 0:00:15.6]} 66. b8=Q {[%clk 0:00:08.4]} 66...
Kh4 {[%clk 0:00:15.6]} 67. Qg8 {[%clk 0:00:08.1]} 67... h5 {[%clk 0:00:16.5]}
68. Bd1 {[%clk 0:00:07.1]} 68... Kh3 {[%clk 0:00:17.4]} 69. Bxh5 {[%clk
0:00:06.1]} 69... Kh2 {[%clk 0:00:16.7]} 70. Bf3 {[%clk 0:00:06.2]} 70... Kh3
{[%clk 0:00:16.1]} 71. Qg2+ {[%clk 0:00:06.1]} 71... Kh4 {[%clk 0:00:15.5]} 72.
Qg4# {[%clk 0:00:07]} 1-0

[Event "Late-Titled-Tuesday-Blitz-March-26-2024"]
[Site "Chess.com"]
[Date "2024.03.26"]
[Round "1"]
[White "SereneSalmon"]
[Black "Defend1r"]
[Result "1-0"]
[WhiteElo "2372"]
[BlackElo "2643"]
[TimeControl "180+1"]
[EndTime "14:08:33 PDT"]
[Termination "SereneSalmon won by checkmate"]

1. c4 {[%clk 0:03:00.9]} 1... Nf6 {[%clk 0:02:59.5]} 2. Nf3 {[%clk 0:03:00.6]}
2... e6 {[%clk 0:02:59.5]} 3. g3 {[%clk 0:03:00.6]} 3... d5 {[%clk 0:02:59.1]}
4. Bg2 {[%clk 0:03:01]} 4... dxc4 {[%clk 0:02:59.4]} 5. Qa4+ {[%clk 0:02:59.1]}
5... Nbd7 {[%clk 0:02:58]} 6. O-O {[%clk 0:02:56.7]} 6... a6 {[%clk 0:02:56.1]}
7. Qxc4 {[%clk 0:02:56.8]} 7... b5 {[%clk 0:02:55.5]} 8. Qc2 {[%clk 0:02:53.3]}
8... Bb7 {[%clk 0:02:55.5]} 9. a4 {[%clk 0:02:48.2]} 9... c5 {[%clk 0:02:48.8]}
10. axb5 {[%clk 0:02:41.4]} 10... axb5 {[%clk 0:02:49.7]} 11. Rxa8 {[%clk
0:02:42.3]} 11... Qxa8 {[%clk 0:02:48.3]} 12. Nc3 {[%clk 0:02:42.8]} 12... Bc6
{[%clk 0:02:44.3]} 13. d3 {[%clk 0:02:28.7]} 13... Bd6 {[%clk 0:02:38.1]} 14. e4
{[%clk 0:02:25.9]} 14... O-O {[%clk 0:02:37.3]} 15. Be3 {[%clk 0:02:15.6]} 15...
c4 {[%clk 0:02:31.2]} 16. Nd4 {[%clk 0:02:14.2]} 16... cxd3 {[%clk 0:02:26]} 17.
Qxd3 {[%clk 0:02:14.1]} 17... Nc5 {[%clk 0:02:26.5]} 18. Qc2 {[%clk 0:02:10.8]}
18... b4 {[%clk 0:02:15.7]} 19. Nxc6 {[%clk 0:02:10.1]} 19... Qxc6 {[%clk
0:02:16.6]} 20. e5 {[%clk 0:02:04.2]} 20... Qc8 {[%clk 0:01:51]} 21. Nb5 {[%clk
0:01:47.7]} 21... Bxe5 {[%clk 0:01:26.1]} 22. Bxc5 {[%clk 0:01:44.7]} 22... Re8
{[%clk 0:01:22.8]} 23. Qc4 {[%clk 0:01:34]} 23... Nd7 {[%clk 0:01:20.3]} 24. Rc1
{[%clk 0:01:26]} 24... Bxb2 {[%clk 0:01:20.1]} 25. Rc2 {[%clk 0:01:18.6]} 25...
Qxc5 {[%clk 0:00:43.5]} 26. Qxc5 {[%clk 0:01:18.2]} 26... Nxc5 {[%clk
0:00:44.4]} 27. Rxb2 {[%clk 0:01:17.1]} 27... b3 {[%clk 0:00:24.4]} 28. Bf1
{[%clk 0:01:09]} 28... Rb8 {[%clk 0:00:24.5]} 29. Bc4 {[%clk 0:01:00.9]} 29...
Kf8 {[%clk 0:00:16.3]} 30. Kf1 {[%clk 0:00:55.5]} 30... Ke7 {[%clk 0:00:16.4]}
31. Ke2 {[%clk 0:00:55.8]} 31... e5 {[%clk 0:00:15.6]} 32. Kd2 {[%clk
0:00:50.7]} 32... f5 {[%clk 0:00:15.7]} 33. f3 {[%clk 0:00:49.6]} 33... Kd7
{[%clk 0:00:16]} 34. Na3 {[%clk 0:00:39.6]} 34... Ra8 {[%clk 0:00:12.3]} 35. Nb1
{[%clk 0:00:38.6]} 35... Rb8 {[%clk 0:00:10]} 36. Ke2 {[%clk 0:00:35.4]} 36...
Rb4 {[%clk 0:00:09.9]} 37. Nd2 {[%clk 0:00:35]} 37... Kc6 {[%clk 0:00:05.6]} 38.
Bxb3 {[%clk 0:00:33.1]} 38... Kd6 {[%clk 0:00:05.6]} 39. Rb1 {[%clk 0:00:30.6]}
39... e4 {[%clk 0:00:05.2]} 40. fxe4 {[%clk 0:00:29.7]} 40... fxe4 {[%clk
0:00:06.1]} 41. Bc2 {[%clk 0:00:29.9]} 41... Rd4 {[%clk 0:00:05.1]} 42. Rb6+
{[%clk 0:00:28.8]} 42... Ke5 {[%clk 0:00:04.7]} 43. Rb5 {[%clk 0:00:28.3]} 43...
Kd6 {[%clk 0:00:04.7]} 44. Rxc5 {[%clk 0:00:28.7]} 44... Kxc5 {[%clk 0:00:04.9]}
45. Nb3+ {[%clk 0:00:29]} 45... Kc4 {[%clk 0:00:04.7]} 46. Nxd4 {[%clk
0:00:29.9]} 46... Kxd4 {[%clk 0:00:05.6]} 47. Ba4 {[%clk 0:00:29.4]} 47... g6
{[%clk 0:00:05.1]} 48. Bc6 {[%clk 0:00:28.7]} 48... h6 {[%clk 0:00:04.6]} 49. h3
{[%clk 0:00:28.9]} 49... h5 {[%clk 0:00:04.3]} 50. h4 {[%clk 0:00:29.1]} 50...
Ke5 {[%clk 0:00:05.1]} 51. Ke3 {[%clk 0:00:29.3]} 51... Kf5 {[%clk 0:00:05.6]}
52. Bxe4+ {[%clk 0:00:29.5]} 52... Kf6 {[%clk 0:00:06.2]} 53. Kf4 {[%clk
0:00:29.6]} 53... Kf7 {[%clk 0:00:05.9]} 54. Kg5 {[%clk 0:00:29.8]} 54... Kg7
{[%clk 0:00:06.8]} 55. Bxg6 {[%clk 0:00:30.7]} 55... Kg8 {[%clk 0:00:06.6]} 56.
Bxh5 {[%clk 0:00:31.6]} 56... Kh8 {[%clk 0:00:07.5]} 57. Be2 {[%clk 0:00:31.6]}
57... Kg7 {[%clk 0:00:08.4]} 58. h5 {[%clk 0:00:32]} 58... Kh7 {[%clk
0:00:09.3]} 59. Bd3+ {[%clk 0:00:31.7]} 59... Kg7 {[%clk 0:00:10.2]} 60. h6+
{[%clk 0:00:32]} 60... Kg8 {[%clk 0:00:11.1]} 61. Kg6 {[%clk 0:00:29.7]} 61...
Kh8 {[%clk 0:00:12]} 62. g4 {[%clk 0:00:29.4]} 62... Kg8 {[%clk 0:00:12.9]} 63.
h7+ {[%clk 0:00:30.1]} 63... Kh8 {[%clk 0:00:13.8]} 64. Kh5 {[%clk 0:00:29]}
64... Kg7 {[%clk 0:00:14]} 65. g5 {[%clk 0:00:28.6]} 65... Kh8 {[%clk
0:00:14.4]} 66. g6 {[%clk 0:00:29.2]} 66... Kg7 {[%clk 0:00:14.8]} 67. h8=Q+
{[%clk 0:00:25.7]} 67... Kxh8 {[%clk 0:00:15.7]} 68. Kh6 {[%clk 0:00:26.2]}
68... Kg8 {[%clk 0:00:15.9]} 69. g7 {[%clk 0:00:26.9]} 69... Kf7 {[%clk
0:00:16.2]} 70. Bc4+ {[%clk 0:00:27.6]} 70... Ke7 {[%clk 0:00:17.1]} 71. g8=Q
{[%clk 0:00:27.7]} 71... Kd6 {[%clk 0:00:18]} 72. Qd5+ {[%clk 0:00:27.9]} 72...
Kc7 {[%clk 0:00:18.3]} 73. Qc5+ {[%clk 0:00:27.7]} 73... Kd7 {[%clk 0:00:18.8]}
74. Kg6 {[%clk 0:00:27.1]} 74... Ke8 {[%clk 0:00:18.7]} 75. Bb5+ {[%clk
0:00:24.7]} 75... Kd8 {[%clk 0:00:19.6]} 76. Qd6+ {[%clk 0:00:23.1]} 76... Kc8
{[%clk 0:00:19.9]} 77. Ba6# {[%clk 0:00:23.7]} 1-0

[Event "Late-Titled-Tuesday-Blitz-March-26-2024"]
[Site "Chess.com"]
[Date "2024.03.26"]
[Round "1"]
[White "TatjanaVasilevich"]
[Black "NitaLucian"]
[Result "1-0"]
[WhiteElo "2611"]
[BlackElo "2277"]
[TimeControl "180+1"]
[EndTime "14:08:45 PDT"]
[Termination "TatjanaVasilevich won by resignation"]

1. d4 {[%clk 0:02:57.1]} 1... d6 {[%clk 0:03:00.9]} 2. e4 {[%clk 0:02:55.3]}
2... Nf6 {[%clk 0:03:01.8]} 3. Nc3 {[%clk 0:02:55.4]} 3... Nbd7 {[%clk
0:03:02.1]} 4. f4 {[%clk 0:02:55.6]} 4... e5 {[%clk 0:03:01.2]} 5. Nf3 {[%clk
0:02:55.9]} 5... c6 {[%clk 0:02:56.3]} 6. Bc4 {[%clk 0:02:55.1]} 6... Qc7 {[%clk
0:02:54.9]} 7. O-O {[%clk 0:02:54.2]} 7... Be7 {[%clk 0:02:54.8]} 8. h3 {[%clk
0:02:50.9]} 8... b5 {[%clk 0:02:54.2]} 9. Bd3 {[%clk 0:02:50.4]} 9... a6 {[%clk
0:02:54]} 10. Be3 {[%clk 0:02:49.1]} 10... Bb7 {[%clk 0:02:54.3]} 11. a4 {[%clk
0:02:47.3]} 11... O-O {[%clk 0:02:53.7]} 12. Ne2 {[%clk 0:02:44.9]} 12... exd4
{[%clk 0:02:49.8]} 13. Nfxd4 {[%clk 0:02:41.3]} 13... c5 {[%clk 0:02:49.9]} 14.
Nf5 {[%clk 0:02:40]} 14... Rfe8 {[%clk 0:02:49.3]} 15. Neg3 {[%clk 0:02:35.7]}
15... c4 {[%clk 0:02:47.6]} 16. Be2 {[%clk 0:02:35.8]} 16... Nxe4 {[%clk
0:02:46.7]} 17. Nxe7+ {[%clk 0:02:29.5]} 17... Rxe7 {[%clk 0:02:41.8]} 18. Nf5
{[%clk 0:01:28]} 18... Re6 {[%clk 0:02:41.4]} 19. Bf3 {[%clk 0:01:26.3]} 19...
Ndc5 {[%clk 0:02:23]} 20. axb5 {[%clk 0:01:23.9]} 20... axb5 {[%clk 0:02:22.4]}
21. Rxa8+ {[%clk 0:01:23.8]} 21... Bxa8 {[%clk 0:02:20.2]} 22. Bd4 {[%clk
0:01:24]} 22... f6 {[%clk 0:02:07.2]} 23. Bg4 {[%clk 0:01:20.5]} 23... Re8
{[%clk 0:02:04.2]} 24. Ne3 {[%clk 0:01:17.7]} 24... Bc6 {[%clk 0:02:02.8]} 25.
b4 {[%clk 0:01:10.7]} 25... Nb7 {[%clk 0:01:52.1]} 26. Bf5 {[%clk 0:01:03.6]}
26... Bd7 {[%clk 0:01:45.9]} 27. Bxe4 {[%clk 0:00:58.5]} 27... Rxe4 {[%clk
0:01:44.4]} 28. Nd5 {[%clk 0:00:52.4]} 28... Qd8 {[%clk 0:01:36.7]} 29. Nc3
{[%clk 0:00:51.5]} 29... Re8 {[%clk 0:01:35.4]} 30. Qf3 {[%clk 0:00:51.4]} 30...
Qc8 {[%clk 0:01:27.6]} 31. Ra1 {[%clk 0:00:37.8]} 31... Bc6 {[%clk 0:01:26.7]}
32. Qg3 {[%clk 0:00:37.2]} 32... Qf5 {[%clk 0:01:24.3]} 33. Ra6 {[%clk
0:00:34.5]} 33... Nd8 {[%clk 0:01:15]} 34. Ra7 {[%clk 0:00:32.6]} 34... Nf7
{[%clk 0:01:02.3]} 35. Rc7 {[%clk 0:00:32.2]} 35... Rc8 {[%clk 0:01:01.2]} 36.
Rxc8+ {[%clk 0:00:31.1]} 36... Qxc8 {[%clk 0:01:01]} 37. Bxf6 {[%clk 0:00:31.3]}
37... Qf8 {[%clk 0:00:57.3]} 38. Bd4 {[%clk 0:00:30.7]} 38... Nh6 {[%clk
0:00:56.6]} 39. Qf2 {[%clk 0:00:30.8]} 39... Nf5 {[%clk 0:00:56]} 40. g4 {[%clk
0:00:31]} 40... Nxd4 {[%clk 0:00:49.6]} 41. Qxd4 {[%clk 0:00:31.9]} 41... Qe7
{[%clk 0:00:49.8]} 42. Qf2 {[%clk 0:00:28.4]} 42... Qf6 {[%clk 0:00:47.4]} 43.
Ne2 {[%clk 0:00:27.8]} 43... Qa1+ {[%clk 0:00:46.1]} 44. Kh2 {[%clk 0:00:27.1]}
44... Qh1+ {[%clk 0:00:43.5]} 45. Kg3 {[%clk 0:00:26.7]} 45... Qe4 {[%clk
0:00:43.9]} 46. Nd4 {[%clk 0:00:24.1]} 46... Bd7 {[%clk 0:00:39]} 47. c3 {[%clk
0:00:23.3]} 47... h6 {[%clk 0:00:37.3]} 48. Qe2 {[%clk 0:00:22.7]} 48... Qxe2
{[%clk 0:00:34.3]} 49. Nxe2 {[%clk 0:00:22.7]} 49... Kf7 {[%clk 0:00:34.3]} 50.
Nd4 {[%clk 0:00:22.6]} 50... Kf6 {[%clk 0:00:34.2]} 51. h4 {[%clk 0:00:22.8]}
51... g5 {[%clk 0:00:32.8]} 52. fxg5+ {[%clk 0:00:20.4]} 52... hxg5 {[%clk
0:00:33.1]} 53. h5 {[%clk 0:00:21.3]} 53... Kg7 {[%clk 0:00:29.7]} 54. Kf3
{[%clk 0:00:17.2]} 54... d5 {[%clk 0:00:27.5]} 55. Nc2 {[%clk 0:00:17.2]} 55...
Kf6 {[%clk 0:00:26.7]} 56. Ne3 {[%clk 0:00:16.7]} 56... Be6 {[%clk 0:00:25]} 57.
Nf1 {[%clk 0:00:12.6]} 57... Ke5 {[%clk 0:00:24.4]} 58. h6 {[%clk 0:00:11.9]}
58... Bg8 {[%clk 0:00:23.4]} 59. Ke3 {[%clk 0:00:12]} 59... Bh7 {[%clk
0:00:21.4]} 60. Nd2 {[%clk 0:00:10.2]} 60... Bd3 {[%clk 0:00:18.8]} 61. Nf3+
{[%clk 0:00:09.8]} 61... Kf6 {[%clk 0:00:19.2]} 62. Kd4 {[%clk 0:00:10.1]} 62...
Be4 {[%clk 0:00:18.8]} 63. Ne5 {[%clk 0:00:08.6]} 63... Bg2 {[%clk 0:00:14.8]}
64. h7 {[%clk 0:00:05.8]} 64... Kg7 {[%clk 0:00:14.6]} 65. Nf7 {[%clk
0:00:06.3]} 65... Kxh7 {[%clk 0:00:14.6]} 66. Nxg5+ {[%clk 0:00:06.8]} 66... Kg6
{[%clk 0:00:15.4]} 67. Ne6 {[%clk 0:00:07.3]} 67... Be4 {[%clk 0:00:14.2]} 68.
Nf4+ {[%clk 0:00:07.4]} 68... Kg5 {[%clk 0:00:14.1]} 69. Nxd5 {[%clk 0:00:08.3]}
69... Bxd5 {[%clk 0:00:13.8]} 70. Kxd5 {[%clk 0:00:08.6]} 70... Kxg4 {[%clk
0:00:14.7]} 71. Kc5 {[%clk 0:00:09.1]} 71... Kf4 {[%clk 0:00:15.6]} 72. Kxb5
{[%clk 0:00:09.5]} 72... Ke4 {[%clk 0:00:15.9]} 73. Kxc4 {[%clk 0:00:10.4]}
73... Ke5 {[%clk 0:00:16.8]} 74. Kc5 {[%clk 0:00:10.9]} 74... Ke6 {[%clk
0:00:16.7]} 75. Kc6 {[%clk 0:00:11.2]} 75... Ke5 {[%clk 0:00:16.5]} 76. b5
{[%clk 0:00:11.3]} 76... Ke4 {[%clk 0:00:17.4]} 77. b6 {[%clk 0:00:12.2]} 1-0

[Event "Late-Titled-Tuesday-Blitz-March-26-2024"]
[Site "Chess.com"]
[Date "2024.03.26"]
[Round "1"]
[White "Abhishek2"]
[Black "aghasiyevkamal"]
[Result "0-1"]
[WhiteElo "2310"]
[BlackElo "2648"]
[TimeControl "180+1"]
[EndTime "14:09:03 PDT"]
[Termination "aghasiyevkamal won by checkmate"]

1. d4 {[%clk 0:03:00.9]} 1... d5 {[%clk 0:02:57.4]} 2. Bf4 {[%clk 0:03:01.4]}
2... Nf6 {[%clk 0:02:56.4]} 3. e3 {[%clk 0:03:02]} 3... e6 {[%clk 0:02:56.7]} 4.
Nf3 {[%clk 0:03:02.6]} 4... Bd6 {[%clk 0:02:57.1]} 5. Ne5 {[%clk 0:03:03.3]}
5... O-O {[%clk 0:02:53.6]} 6. Nd2 {[%clk 0:03:03.5]} 6... c5 {[%clk 0:02:53.1]}
7. c3 {[%clk 0:03:04]} 7... Qc7 {[%clk 0:02:53.7]} 8. Bd3 {[%clk 0:03:04.2]}
8... Nbd7 {[%clk 0:02:53.7]} 9. Ndf3 {[%clk 0:03:04.2]} 9... Ne4 {[%clk
0:02:53.2]} 10. O-O {[%clk 0:03:03.7]} 10... f6 {[%clk 0:02:48.8]} 11. Nxd7
{[%clk 0:03:03.7]} 11... Bxd7 {[%clk 0:02:49.1]} 12. Bxe4 {[%clk 0:03:01]} 12...
Bxf4 {[%clk 0:02:45.3]} 13. Bxh7+ {[%clk 0:03:00.5]} 13... Kxh7 {[%clk
0:02:45.5]} 14. exf4 {[%clk 0:03:01.3]} 14... Qxf4 {[%clk 0:02:44.5]} 15. dxc5
{[%clk 0:03:01.3]} 15... Bc6 {[%clk 0:02:40.1]} 16. Nd4 {[%clk 0:02:58.9]} 16...
Rae8 {[%clk 0:02:35.6]} 17. Qh5+ {[%clk 0:02:57.5]} 17... Qh6 {[%clk 0:02:34]}
18. Qf3 {[%clk 0:02:40.6]} 18... Bd7 {[%clk 0:02:18.4]} 19. Rfe1 {[%clk
0:02:35.6]} 19... a6 {[%clk 0:02:17.7]} 20. Rad1 {[%clk 0:02:31.9]} 20... Kg8
{[%clk 0:02:17.5]} 21. Re3 {[%clk 0:02:19.5]} 21... Qg5 {[%clk 0:02:09.2]} 22.
Qe2 {[%clk 0:02:11.2]} 22... e5 {[%clk 0:01:55.7]} 23. Rg3 {[%clk 0:02:10.7]}
23... Qh6 {[%clk 0:01:50.2]} 24. Nc2 {[%clk 0:02:02.3]} 24... Be6 {[%clk
0:01:45.2]} 25. Nb4 {[%clk 0:01:50.9]} 25... Rd8 {[%clk 0:01:42.9]} 26. h3
{[%clk 0:01:46.2]} 26... Rd7 {[%clk 0:01:36.2]} 27. c6 {[%clk 0:01:43.7]} 27...
bxc6 {[%clk 0:01:35.7]} 28. Qxa6 {[%clk 0:01:43.1]} 28... Qh5 {[%clk 0:01:23.4]}
29. Re1 {[%clk 0:01:41.1]} 29... Rd6 {[%clk 0:01:19.1]} 30. Nxc6 {[%clk
0:01:36.6]} 30... Qe8 {[%clk 0:01:19]} 31. Qb7 {[%clk 0:01:27.7]} 31... Rf7
{[%clk 0:01:18.6]} 32. Qb8 {[%clk 0:01:27]} 32... Qxb8 {[%clk 0:01:16]} 33. Nxb8
{[%clk 0:01:27.9]} 33... Rb7 {[%clk 0:01:15.6]} 34. b4 {[%clk 0:01:11.3]} 34...
Rxb8 {[%clk 0:01:14.9]} 35. a4 {[%clk 0:01:11.2]} 35... d4 {[%clk 0:01:10.7]}
36. cxd4 {[%clk 0:01:09.8]} 36... Rxd4 {[%clk 0:01:10.5]} 37. a5 {[%clk
0:01:04.7]} 37... Rdxb4 {[%clk 0:01:09.6]} 38. Ra3 {[%clk 0:01:05.3]} 38... Rb3
{[%clk 0:01:00.2]} 39. Raa1 {[%clk 0:01:04.2]} 39... Ra8 {[%clk 0:00:53.7]} 40.
Red1 {[%clk 0:01:03.7]} 40... Rb5 {[%clk 0:00:52.5]} 41. Rd6 {[%clk 0:01:02.2]}
41... Kf7 {[%clk 0:00:49.5]} 42. Rc1 {[%clk 0:01:00.6]} 42... Ra7 {[%clk
0:00:46.7]} 43. a6 {[%clk 0:00:59.2]} 43... Ra5 {[%clk 0:00:43.8]} 44. Rcc6
{[%clk 0:00:54.7]} 44... Ba2 {[%clk 0:00:41.6]} 45. Rb6 {[%clk 0:00:53.5]} 45...
Bc4 {[%clk 0:00:34.4]} 46. Rb7+ {[%clk 0:00:41.7]} 46... Rxb7 {[%clk 0:00:34]}
47. axb7 {[%clk 0:00:42.3]} 47... Rb5 {[%clk 0:00:33.9]} 48. Rd7+ {[%clk
0:00:33.9]} 48... Kg6 {[%clk 0:00:31.9]} 49. Kh2 {[%clk 0:00:26]} 49... Be6
{[%clk 0:00:24.7]} 50. Re7 {[%clk 0:00:25.7]} 50... Bd5 {[%clk 0:00:23.8]} 51.
Rd7 {[%clk 0:00:25.5]} 51... Bxb7 {[%clk 0:00:23.5]} 52. Kg3 {[%clk 0:00:25.2]}
52... Rb3+ {[%clk 0:00:22.2]} 53. f3 {[%clk 0:00:25.5]} 53... e4 {[%clk
0:00:22]} 54. h4 {[%clk 0:00:19.6]} 54... exf3 {[%clk 0:00:21.9]} 55. gxf3
{[%clk 0:00:19.5]} 55... Bxf3 {[%clk 0:00:21.5]} 56. Kf4 {[%clk 0:00:19.3]}
56... Bh5 {[%clk 0:00:20.8]} 57. Rc7 {[%clk 0:00:18.8]} 57... Rb4+ {[%clk
0:00:20.5]} 58. Kg3 {[%clk 0:00:19.5]} 58... Rg4+ {[%clk 0:00:18.9]} 59. Kh3
{[%clk 0:00:20]} 59... f5 {[%clk 0:00:18.6]} 60. Rc6+ {[%clk 0:00:20.3]} 60...
Kh7 {[%clk 0:00:17.7]} 61. Rd6 {[%clk 0:00:20.2]} 61... g6 {[%clk 0:00:17.5]}
62. Rd7+ {[%clk 0:00:20.1]} 62... Kh6 {[%clk 0:00:17.7]} 63. Rd6 {[%clk
0:00:20.3]} 63... Re4 {[%clk 0:00:17.6]} 64. Rc6 {[%clk 0:00:20.4]} 64... f4
{[%clk 0:00:17.6]} 65. Rf6 {[%clk 0:00:20.1]} 65... Kg7 {[%clk 0:00:17.5]} 66.
Rc6 {[%clk 0:00:20.1]} 66... Re3+ {[%clk 0:00:17]} 67. Kh2 {[%clk 0:00:20.2]}
67... Re2+ {[%clk 0:00:16]} 68. Kh3 {[%clk 0:00:19.9]} 68... f3 {[%clk
0:00:14.7]} 69. Rc1 {[%clk 0:00:18.6]} 69... f2 {[%clk 0:00:14.1]} 70. Rf1
{[%clk 0:00:19.2]} 70... Kf6 {[%clk 0:00:14.1]} 71. Kg2 {[%clk 0:00:19.7]} 71...
Kf5 {[%clk 0:00:14.2]} 72. Rxf2+ {[%clk 0:00:20.2]} 72... Rxf2+ {[%clk
0:00:14.4]} 73. Kxf2 {[%clk 0:00:21.1]} 73... Kg4 {[%clk 0:00:15.1]} 74. Kg2
{[%clk 0:00:21.7]} 74... Kxh4 {[%clk 0:00:15.8]} 75. Kh2 {[%clk 0:00:20.7]}
75... g5 {[%clk 0:00:16.2]} 76. Kg2 {[%clk 0:00:21.2]} 76... Bf7 {[%clk
0:00:17]} 77. Kh2 {[%clk 0:00:21.7]} 77... g4 {[%clk 0:00:17.6]} 78. Kg2 {[%clk
0:00:22.2]} 78... Bd5+ {[%clk 0:00:18.2]} 79. Kf2 {[%clk 0:00:22.5]} 79... Kh3
{[%clk 0:00:18.2]} 80. Ke3 {[%clk 0:00:23.3]} 80... g3 {[%clk 0:00:18.2]} 81.
Kd4 {[%clk 0:00:24.2]} 81... Ba8 {[%clk 0:00:18.5]} 82. Ke5 {[%clk 0:00:24.7]}
82... g2 {[%clk 0:00:19]} 83. Kd6 {[%clk 0:00:25.6]} 83... g1=Q {[%clk
0:00:19.5]} 84. Ke5 {[%clk 0:00:25.5]} 84... Qg3+ {[%clk 0:00:19.2]} 85. Kf5
{[%clk 0:00:25.8]} 85... Bd5 {[%clk 0:00:18.6]} 86. Kf6 {[%clk 0:00:26.2]} 86...
Qf4+ {[%clk 0:00:18.3]} 87. Ke7 {[%clk 0:00:26.3]} 87... Qe5+ {[%clk 0:00:18.2]}
88. Kd7 {[%clk 0:00:26.6]} 88... Qe6+ {[%clk 0:00:18.1]} 89. Kc7 {[%clk
0:00:27.1]} 89... Qc6+ {[%clk 0:00:18.2]} 90. Kd8 {[%clk 0:00:27.8]} 90... Kg4
{[%clk 0:00:18.4]} 91. Ke7 {[%clk 0:00:28.2]} 91... Kf5 {[%clk 0:00:18.8]} 92.
Kf8 {[%clk 0:00:28.7]} 92... Qb7 {[%clk 0:00:17.8]} 93. Ke8 {[%clk 0:00:28.8]}
93... Ke6 {[%clk 0:00:16.6]} 94. Kf8 {[%clk 0:00:28.8]} 94... Qf7# {[%clk
0:00:16.8]} 0-1